fUSD/lending_fUSD_20250629
["ID","MTS","AMOUNT","RATE_DAILY","PERIOD"]
[368500979,1751190847359,-2061.37,0.0003976,120]
[368500980,1751190847368,-2061.37,0.0003976,120]
[368500981,1751190847376,-2061.37,0.0003976,120]
[368500982,1751190847386,-2061.37,0.0003976,120]
[368500983,1751190847395,-2061.37,0.0003976,120]
[368500984,1751190847404,-2061.37,0.0003976,120]
[368500985,1751190847413,-2061.37,0.0003976,120]
[368500986,1751190847422,-2061.37,0.0003976,120]
[368500987,1751190847431,-2061.37,0.0003976,120]
[368500988,1751190847440,-2061.37,0.0003976,120]
[368500989,1751190847449,-2061.37,0.0003976,120]
[368500990,1751190847458,-2061.37,0.0003976,120]
[368500991,1751190847468,-2061.37,0.0003976,120]
[368500992,1751190847477,-2061.48067134,0.0003976,120]
[368500993,1751190847486,-500.0,0.0003976,120]
[368500994,1751190847495,-500.0,0.0003976,120]
[368500995,1751190847505,-500.0,0.0003976,120]
[368500996,1751190847514,-558.09,0.0003976,120]
[368500997,1751190847524,-490.0,0.0003976,120]
[368500998,1751190847537,-500.0,0.0003976,120]
[368500999,1751190847547,-480.0,0.0003976,120]
[368501000,1751190847556,-500.0,0.0003976,120]
[368501001,1751190847566,-500.0,0.0003976,120]
[368501002,1751190847577,-500.0,0.0003976,120]
[368501003,1751190847587,-500.0,0.0003976,120]
[368501004,1751190847596,-500.0,0.0003976,120]
[368501005,1751190847608,-500.0,0.0003976,120]
[368501006,1751190847617,-500.0,0.0003976,120]
[368501007,1751190847627,-500.0,0.0003976,120]
[368501008,1751190847636,-500.0,0.0003976,120]
[368501009,1751190847645,-500.0,0.0003976,120]
[368501010,1751190847654,-500.0,0.0003976,120]
[368501011,1751190847663,-500.0,0.0003976,120]
[368501012,1751190847672,-174.27,0.0003976,120]
[368501013,1751190847681,-500.0,0.0003976,120]
[368501014,1751190847691,-480.0,0.0003976,120]
[368501015,1751190847700,-500.0,0.0003976,120]
[368501016,1751190847709,-500.0,0.0003976,120]
[368501017,1751190847719,-500.0,0.0003976,120]
[368501018,1751190847728,-558.09,0.0003976,120]
[368501019,1751190847738,-490.0,0.0003976,120]
[368501020,1751190847747,-500.0,0.0003976,120]
[368501021,1751190847756,-500.0,0.0003976,120]
[368501022,1751190847766,-177.66,0.0003976,120]
[368501023,1751190847775,-6020.859127,0.0003976,30]
[368501024,1751190847784,-3940.0,0.0003976,120]
[368501025,1751190847793,-543205.0,0.0003976,60]
[368501026,1751190847803,-500.0,0.0003976,120]
[368501027,1751190847812,-449.91,0.0003976,120]
[368501028,1751190847821,-490.0,0.0003976,120]
[368501029,1751190847831,-1081.0,0.0003976,30]
[368501030,1751190847840,-1081.0,0.0003976,30]
[368501031,1751190847849,-1081.0,0.0003976,30]
[368501032,1751190847859,-1081.0,0.0003976,30]
[368501033,1751190847868,-1081.0,0.0003976,30]
[368501034,1751190847877,-201.0,0.0003976,120]
[368501035,1751190847886,-401314.0,0.0003976,60]
[368501036,1751190847896,-2249.43699851,0.0003976,120]
[368501037,1751190847905,-2122.43609946,0.0003976,120]
[368501038,1751190847914,-450.97879284,0.0003976,30]
[368501039,1751190847924,-325.99521703,0.0003976,30]
[368501040,1751190847934,-5000.0,0.0003976,120]
[368501041,1751190847943,-1589.02,0.0003976,120]
[368501042,1751190847953,-81410.43,0.0003976,60]
[368501043,1751190847963,-500.0,0.0003976,120]
[368501044,1751190847972,-500.0,0.0003976,120]
[368501045,1751190847982,-159.77,0.0003976,120]
[368501046,1751190847991,-500.0,0.0003976,120]
[368501047,1751190848000,-500.0,0.0003976,120]
[368501048,1751190848012,-500.0,0.0003976,120]
[368501049,1751190848021,-500.0,0.0003976,120]
[368501050,1751190848031,-319.54,0.0003976,120]
[368501051,1751190848040,-500.0,0.0003976,120]
[368501052,1751190848050,-500.0,0.0003976,120]
[368501053,1751190848060,-500.0,0.0003976,120]
[368501054,1751190848069,-500.0,0.0003976,120]
[368501055,1751190848079,-500.0,0.0003976,120]
[368501056,1751190848089,-500.0,0.0003976,120]
[368501057,1751190848099,-479.31,0.0003976,120]
[368501058,1751190848109,-209.9,0.0003976,30]
[368501059,1751190848120,-158.0,0.0003976,120]
[368501060,1751190848130,-500.0,0.0003976,120]
[368501061,1751190848140,-500.0,0.0003976,120]
[368501062,1751190848149,-500.0,0.0003976,120]
[368501063,1751190848158,-500.0,0.0003976,120]
[368501064,1751190848168,-319.54,0.0003976,120]
[368501065,1751190848177,-490.0,0.0003976,120]
[368501066,1751190848187,-500.0,0.0003976,120]
[368501067,1751190848198,-240.97,0.0003976,120]
[368501068,1751190848209,-500.0,0.0003976,120]
[368501069,1751190848218,-500.0,0.0003976,120]
[368501070,1751190848228,-499.2524222,0.0003976,120]
[368501071,1751190848238,-500.0,0.0003976,120]
[368501072,1751190848247,-500.0,0.0003976,120]
[368501073,1751190848256,-500.0,0.0003976,120]
[368501074,1751190848266,-500.0,0.0003976,120]
[368501075,1751190848276,-222.91,0.0003976,120]
[368501076,1751190848285,-150.0,0.0003976,2]
[368501077,1751190848296,-150.0,0.0003976,3]
[368501078,1751190848305,-209.9,0.0003976,30]
[368501079,1751190848315,-209.9,0.0003976,30]
[368501080,1751190848325,-13713.63844543,0.0003976,30]
[368501081,1751190848334,-10982.56274311,0.0003976,30]
[368501082,1751190848344,-297680.88692417,0.0003976,30]
[368501083,1751190848354,-27951.64347413,0.0003976,30]
[368501084,1751190848364,-15115.02184129,0.0003976,30]
[368501085,1751190848374,-33598.49160692,0.0003976,30]
[368501086,1751190848509,-30113.61999064,0.0003976,30]
[368501087,1751190848526,-15592.47161239,0.0003976,30]
[368501088,1751190848538,-50000.0,0.0003976,30]
[368501089,1751190848548,-36537.07805467,0.0003976,15]
[368501090,1751190848558,-13457.66051192,0.0003976,30]
[368501091,1751190848568,-31968.40220505,0.0003976,30]
[368501092,1751190848577,-10090.96843427,0.0003976,120]
[368501093,1751190848587,-13382.37014034,0.0003976,30]
[368501094,1751190848597,-27556.21271879,0.0003976,30]
[368501095,1751190848606,-39024.37873473,0.0003976,30]
[368501096,1751190848616,-304441.89059379,0.0003976,30]
[368501097,1751190848625,-35020.59773922,0.0003976,30]
[368501098,1751190848635,-49889.31717628,0.0003976,5]
[368501099,1751190848645,-500.0,0.0003976,120]
[368501100,1751190848654,-635.67,0.0003976,120]
[368501101,1751190848663,-1337.93966518,0.0003976,120]
[368501102,1751190848672,-500.0,0.0003976,120]
[368501103,1751190848681,-500.0,0.0003976,120]
[368501104,1751190848691,-500.0,0.0003976,120]
[368501105,1751190848701,-500.0,0.0003976,120]
[368501106,1751190848711,-500.0,0.0003976,120]
[368501107,1751190848721,-500.0,0.0003976,120]
[368501108,1751190848732,-500.0,0.0003976,120]
[368501109,1751190848742,-500.0,0.0003976,120]
[368501110,1751190848752,-500.0,0.0003976,120]
[368501111,1751190848762,-500.0,0.0003976,120]
[368501112,1751190848772,-500.0,0.0003976,120]
[368501113,1751190848781,-500.0,0.0003976,120]
[368501114,1751190848791,-500.0,0.0003976,120]
[368501115,1751190848801,-500.0,0.0003976,120]
[368501116,1751190848811,-500.0,0.0003976,120]
[368501117,1751190848820,-500.0,0.0003976,120]
[368501118,1751190848830,-530.53624398,0.0003976,120]
[368501119,1751190848841,-395.14422693,0.0003976,10]
[368501120,1751190848850,-150.0,0.00039795,120]
[368501121,1751190848860,-1000.0,0.00039795,2]
[368501122,1751190848869,-500.0,0.0003982,7]
[368501123,1751190848879,-500.0,0.00039825,7]
[368501124,1751190848888,-150.0,0.00039839,120]
[368501125,1751190848898,-1006.33989509,0.0003997,15]
[368501126,1751190848907,-16726.08432468,0.0004,2]
[368501127,1751190848917,-56184.4257409,0.0004,2]
[368501128,1751190848926,-1450.11654708,0.0004,120]
[368501129,1751190848936,-500.0,0.0004,120]
[368501130,1751190848946,-500.0,0.0004,120]
[368501131,1751190848955,-500.0,0.0004,120]
[368501132,1751190848966,-500.0,0.0004,120]
[368501133,1751190848975,-500.0,0.0004,120]
[368501134,1751190848986,-875.34059017,0.0004,120]
[368501135,1751190848995,-150.0,0.0004,2]
[368501136,1751190849005,-304627.17616141,0.0004,2]
[368501137,1751190849015,-100560.65967815,0.0004,30]
[368501138,1751190849025,-263.62935519,0.0004,120]
[368501139,1751190849034,-100000.0,0.0004,120]
[368501140,1751190849044,-4034.00850014,0.0004,30]
[368501141,1751190849055,-678.82702778,0.0004,120]
[368501142,1751190849064,-713589.95255132,0.0004,30]
[368501143,1751190849074,-300.0,0.0004,120]
[368501144,1751190849084,-477.12749073,0.0004,30]
[368501145,1751190849094,-410.71999645,0.0004,7]
[368501146,1751190849104,-951.20808605,0.0004,7]
[368501147,1751190849114,-201.09564099,0.0004,30]
[368501148,1751190849124,-982.90368233,0.0004,20]
[368501149,1751190849133,-656.98035839,0.0004,30]
[368501150,1751190849143,-1029.32413139,0.0004,30]
[368501151,1751190849153,-500.0,0.0004,30]
[368501152,1751190849162,-572.0,0.0004,120]
[368501153,1751190849172,-8148.9037432,0.0004,2]
[368501154,1751190849182,-900.0,0.0004,41]
[368501155,1751190849191,-174.68190277,0.0004,120]
[368501156,1751190849201,-178.10847308,0.0004,120]
[368501157,1751190849212,-3298.11625619,0.0004,14]
[368501158,1751190849222,-160000.0,0.0004,20]
[368501159,1751190849231,-300.0,0.0004,30]
[368501160,1751190849241,-17429.18406678,0.0004,30]
[368501161,1751190849250,-110948.10018155,0.0004,30]
[368501162,1751190849260,-3706.9,0.0004,120]
[368501163,1751190849269,-237.25,0.0004,120]
[368501164,1751190849279,-229.37,0.0004,120]
[368501165,1751190849288,-499.99,0.0004,120]
[368501166,1751190849298,-11369.52,0.0004,120]
[368501167,1751190849308,-22500.0,0.0004,120]
[368501168,1751190849317,-15000.0,0.0004,120]
[368501169,1751190849327,-518.872919,0.0004,15]
[368501170,1751190849337,-3491.16,0.0004,120]
[368501171,1751190849346,-5000.0,0.0004,120]
[368501172,1751190849355,-156.0,0.00040023,2]
[368501173,1751190849365,-690.35,0.000401,120]
[368501174,1751190849374,-700.0,0.00040103,30]
[368501175,1751190849384,-556.35,0.00040125,120]
[368501176,1751190849393,-150.0,0.00040149,120]
[368501177,1751190849403,-3420.0,0.00040212,5]
[368501178,1751190849413,-700.0,0.00040215,30]
[368501179,1751190849423,-150.0,0.00040224,120]
[368501180,1751190849433,-500.0,0.00040295,30]
[368501181,1751190849442,-700.0,0.00040302,30]
[368501182,1751190849452,-700.0,0.00040308,30]
[368501183,1751190849461,-150.0,0.00040345,120]
[368501184,1751190849471,-700.0,0.00040378,30]
[368501185,1751190849480,-255.69,0.000404,120]
[368501186,1751190849493,-700.0,0.00040405,30]
[368501187,1751190849502,-154.06,0.00040406,2]
[368501188,1751190849512,-150.0,0.00040431,120]
[368501189,1751190849522,-150.0,0.00040435,120]
[368501190,1751190849535,-150.0,0.00040481,120]
[368501191,1751190849545,-4000.0,0.000405,8]
[368501192,1751190849554,-500.0,0.00040514,30]
[368501193,1751190849563,-513.27519403,0.00040518,30]
[368501194,1751190849574,-500.0,0.0004053,30]
[368501195,1751190849583,-500.0,0.00040589,30]
[368501196,1751190849592,-250.71916474,0.00040609,30]
[368501197,1751190849602,-700.0,0.00040628,30]
[368501198,1751190849612,-530.67943665,0.00040658,120]
[368501199,1751190849621,-500.0,0.00040686,30]
[368501200,1751190849631,-700.0,0.00040707,30]
[368501201,1751190849641,-16597.40855051,0.000408,60]
[368501202,1751190849651,-500.0,0.00040873,30]
[368501203,1751190849662,-125000.0,0.000409,60]
[368501204,1751190849671,-16415.11619352,0.000409,120]
[368501205,1751190849681,-16415.11619352,0.000409,120]
[368501206,1751190849690,-16415.11619352,0.000409,120]
[368501207,1751190849699,-16415.11619352,0.000409,120]
[368501208,1751190849709,-16415.11619352,0.000409,120]
[368501209,1751190849718,-16415.11619352,0.000409,120]
[368501210,1751190849728,-16415.11619352,0.000409,120]
[368501211,1751190849737,-16415.11619352,0.000409,120]
[368501212,1751190849747,-16415.11619352,0.000409,120]
[368501213,1751190849757,-16415.11619352,0.000409,120]
[368501214,1751190849767,-500.0,0.00040952,30]
[368501215,1751190849776,-298.26089446,0.00040971,2]
[368501216,1751190849786,-700.0,0.00040995,30]
[368501217,1751190849795,-2162.46,0.00041,120]
[368501218,1751190849805,-300.0,0.00041,30]
[368501219,1751190849816,-164.0,0.00041,90]
[368501220,1751190849826,-2661.86352863,0.0004108,90]
[368501221,1751190849836,-500.0,0.00041095,10]
[368501222,1751190849845,-500.0,0.00041095,10]
[368501223,1751190849855,-500.0,0.00041095,10]
[368501224,1751190849864,-500.0,0.00041095,10]
[368501225,1751190849873,-500.0,0.00041095,10]
[368501226,1751190849882,-500.0,0.00041095,10]
[368501227,1751190849892,-500.0,0.00041095,10]
[368501228,1751190849901,-500.0,0.00041095,10]
[368501229,1751190849911,-500.0,0.00041095,10]
[368501230,1751190849919,-500.0,0.00041095,10]
[368501231,1751190849929,-500.0,0.00041095,10]
[368501232,1751190849939,-500.0,0.00041095,10]
[368501233,1751190849948,-500.0,0.00041095,10]
[368501234,1751190849958,-500.0,0.00041095,10]
[368501235,1751190849968,-500.0,0.00041095,10]
[368501236,1751190849978,-218.40444774,0.00041095,10]
[368501237,1751190849988,-1651.66,0.00041095,2]
[368501238,1751190849998,-1651.66,0.00041095,2]
[368501239,1751190850008,-1651.66,0.00041095,2]
[368501240,1751190850018,-1651.66,0.00041095,2]
[368501241,1751190850028,-1651.66,0.00041095,2]
[368501242,1751190850038,-1651.66,0.00041095,2]
[368501243,1751190850048,-1651.66,0.00041095,2]
[368501244,1751190850058,-1651.66,0.00041095,2]
[368501245,1751190850068,-1651.66,0.00041095,2]
[368501246,1751190850079,-1651.66,0.00041095,2]
[368501247,1751190850089,-1651.66,0.00041095,2]
[368501248,1751190850099,-1651.66,0.00041095,2]
[368501249,1751190850109,-1651.66,0.00041095,2]
[368501250,1751190850119,-1651.66,0.00041095,2]
[368501251,1751190850129,-1651.66,0.00041095,2]
[368501252,1751190850139,-1651.66,0.00041095,2]
[368501253,1751190850148,-1651.66,0.00041095,2]
[368501254,1751190850158,-1651.66,0.00041095,2]
[368501255,1751190850168,-1651.66,0.00041095,2]
[368501256,1751190850178,-1651.66,0.00041095,2]
[368501257,1751190850188,-1651.66,0.00041095,2]
[368501258,1751190850198,-1651.66,0.00041095,2]
[368501259,1751190850208,-1651.66,0.00041095,2]
[368501260,1751190850218,-1651.83227462,0.00041095,2]
[368501261,1751190850229,-601.31768191,0.00041095,30]
[368501262,1751190850239,-490.0,0.00041095,30]
[368501263,1751190850249,-536.63044234,0.00041095,30]
[368501264,1751190850258,-500.0,0.00041095,120]
[368501265,1751190850268,-500.0,0.00041095,120]
[368501266,1751190850277,-500.0,0.00041095,120]
[368501267,1751190850287,-500.0,0.00041095,120]
[368501268,1751190850309,-500.0,0.00041095,120]
[368501269,1751190850319,-500.0,0.00041095,120]
[368501270,1751190850328,-500.0,0.00041095,120]
[368501271,1751190850338,-500.0,0.00041095,120]
[368501272,1751190850347,-500.0,0.00041095,120]
[368501273,1751190850356,-500.0,0.00041095,120]
[368501274,1751190850366,-500.0,0.00041095,120]
[368501275,1751190850375,-428.25242962,0.00041095,120]
[368501276,1751190850384,-500.0,0.00041096,10]
[368501277,1751190850393,-4000.0,0.00041096,30]
[368501278,1751190850402,-500.0,0.00041096,30]
[368501279,1751190850411,-500.0,0.00041096,30]
[368501280,1751190850420,-500.0,0.00041096,30]
[368501281,1751190850429,-500.0,0.00041096,30]
[368501282,1751190850438,-500.0,0.00041096,30]
[368501283,1751190850448,-500.0,0.00041096,30]
[368501284,1751190850457,-500.0,0.00041096,30]
[368501285,1751190850466,-500.0,0.00041096,30]
[368501286,1751190850475,-500.0,0.00041096,30]
[368501287,1751190850484,-500.0,0.00041096,30]
[368501288,1751190850493,-500.0,0.00041096,30]
[368501289,1751190850502,-500.0,0.00041096,30]
[368501290,1751190850511,-500.0,0.00041096,30]
[368501291,1751190850520,-500.0,0.00041096,30]
[368501292,1751190850534,-500.0,0.00041096,30]
[368501293,1751190850544,-500.0,0.00041096,30]
[368501294,1751190850553,-500.0,0.00041096,30]
[368501295,1751190850563,-500.0,0.00041096,30]
[368501296,1751190850574,-500.0,0.00041096,30]
[368501297,1751190850585,-500.0,0.00041096,30]
[368501298,1751190850594,-500.0,0.00041096,30]
[368501299,1751190850604,-500.0,0.00041096,30]
[368501300,1751190850613,-500.0,0.00041096,30]
[368501301,1751190850622,-500.0,0.00041096,30]
[368501302,1751190850631,-500.0,0.00041096,30]
[368501303,1751190850640,-500.0,0.00041096,30]
[368501304,1751190850650,-500.0,0.00041096,30]
[368501305,1751190850659,-500.0,0.00041096,30]
[368501306,1751190850669,-500.0,0.00041096,30]
[368501307,1751190850679,-500.0,0.00041096,30]
[368501308,1751190850688,-500.0,0.00041096,30]
[368501309,1751190850699,-500.0,0.00041096,30]
[368501310,1751190851043,-500.0,0.00041096,30]
[368501311,1751190851053,-500.0,0.00041096,30]
[368501312,1751190851065,-500.0,0.00041096,30]
[368501313,1751190851075,-500.0,0.00041096,30]
[368501314,1751190851088,-500.0,0.00041096,30]
[368501315,1751190851099,-500.0,0.00041096,30]
[368501316,1751190851112,-500.0,0.00041096,30]
[368501317,1751190851122,-500.0,0.00041096,30]
[368501318,1751190851136,-500.0,0.00041096,30]
[368501319,1751190851148,-500.0,0.00041096,30]
[368501320,1751190851158,-500.0,0.00041096,30]
[368501321,1751190851171,-500.0,0.00041096,30]
[368501322,1751190851181,-500.0,0.00041096,30]
[368501323,1751190851194,-500.0,0.00041096,30]
[368501324,1751190851206,-500.0,0.00041096,30]
[368501325,1751190851216,-500.0,0.00041096,30]
[368501326,1751190851230,-500.0,0.00041096,30]
[368501327,1751190851242,-382.0,0.00041096,30]
[368501328,1751190851252,-500.0,0.00041096,30]
[368501329,1751190851264,-500.0,0.00041096,30]
[368501330,1751190851275,-500.0,0.00041096,30]
[368501331,1751190851288,-500.0,0.00041096,30]
[368501332,1751190851298,-500.0,0.00041096,30]
[368501333,1751190851310,-500.0,0.00041096,30]
[368501334,1751190851321,-500.0,0.00041096,30]
[368501335,1751190851331,-500.0,0.00041096,30]
[368501336,1751190851342,-500.0,0.00041096,30]
[368501337,1751190851352,-500.0,0.00041096,30]
[368501338,1751190851365,-500.0,0.00041096,30]
[368501339,1751190851374,-500.0,0.00041096,30]
[368501340,1751190851388,-500.0,0.00041096,30]
[368501341,1751190851399,-500.0,0.00041096,30]
[368501342,1751190851409,-500.0,0.00041096,30]
[368501343,1751190851420,-500.0,0.00041096,30]
[368501344,1751190851430,-150.0,0.00041096,2]
[368501345,1751190851443,-467.95715717,0.00041096,31]
[368501346,1751190851453,-150.0,0.00041096,3]
[368501347,1751190851465,-172.0,0.000412,120]
[368501348,1751190851476,-3023.22,0.0004123,120]
[368501349,1751190851485,-700.0,0.00041232,30]
[368501350,1751190851499,-778.1138759,0.00041352,30]
[368501351,1751190851509,-150.0,0.0004137,3]
[368501352,1751190851523,-500.0,0.00041483,30]
[368501353,1751190851541,-5000.0,0.0004149,120]
[368501354,1751190851550,-500.0,0.00041526,30]
[368501355,1751190851563,-651.77754497,0.00041618,30]
[368501356,1751190851576,-1000.0,0.00041644,10]
[368501357,1751190851586,-214.73718645,0.00041644,3]
[368501358,1751190851599,-500.0,0.00041655,30]
[368501359,1751190851610,-607.06967413,0.00041683,30]
[368501360,1751190851621,-47177.82796862,0.00041689,120]
[368501361,1751190851634,-924.55,0.00041716,30]
[368501362,1751190851643,-86885.6271324,0.000418,120]
[368501364,1751190852829,-150.0,0.00027396,2]
[368501365,1751190852839,-151.44310944,0.00027396,2]
[368501366,1751190852849,-436.91235985,0.00027397,3]
[368501368,1751190854678,-53.08764015,0.00027397,3]
[368501369,1751190854687,-26.8550796,0.00027671,3]
[368501370,1751190854784,-463.1449204,0.00027671,3]
[368501371,1751190854794,-490.0,0.00027945,3]
[368501372,1751190854804,-490.0,0.00027945,3]
[368501373,1751190854814,-490.0,0.00028219,3]
[368501374,1751190854823,-2063.76,0.00028219,3]
[368501375,1751190854832,-490.0,0.00028219,3]
[368501376,1751190854842,-550.78473053,0.00028493,3]
[368501377,1751190854851,-2063.76,0.00028493,3]
[368501378,1751190854860,-1213.82,0.00028767,3]
[368501379,1751190854869,-2063.76,0.00028767,3]
[368501380,1751190854879,-300.0,0.00028929,2]
[368501381,1751190854888,-2090.18,0.00029041,3]
[368501382,1751190854898,-830.46,0.00029041,3]
[368501383,1751190854907,-1213.82,0.00029041,3]
[368501384,1751190854916,-1990.65758541,0.00029041,3]
[368501385,1751190855424,-150.0,0.00027396,2]
[368501386,1751190855433,-876.089,0.00028023,2]
[368501387,1751190855442,-462.71,0.00028055,2]
[368501388,1751190855451,-490.0,0.00028493,3]
[368501389,1751190855460,-490.0,0.00028767,3]
[368501390,1751190855469,-73.10241459,0.00029041,3]
[368501391,1751190855479,-490.0,0.00029041,3]
[368501392,1751190855487,-1974.55848786,0.00029315,3]
[368501393,1751190855510,-159.8841594,0.00027845,2]
[368501394,1751190855520,-115.62151214,0.00029315,3]
[368501395,1751190855532,-830.46,0.00029315,3]
[368501396,1751190855541,-1086.21013063,0.00029315,3]
[368501397,1751190855582,-127.60986937,0.00029315,3]
[368501398,1751190855592,-2063.76,0.00029315,3]
[368501399,1751190855602,-229.53013063,0.00029315,3]
[368501400,1751190855818,-766.53410301,0.00027397,3]
[368501401,1751190864464,1000.0,0.00027297,120]
[368501418,1751190970381,176.8,0.00013699,2]
[368501425,1751191182191,336.91,0.00027397,120]
[368501521,1751191610122,-202.8,0.000263,2]
[368501522,1751191610148,-12.00660231,0.00026798,2]
[368501523,1751191722609,200.88420712,0.00027397,120]
[368501524,1751191804635,200.0,0.000221,7]
[368501525,1751191813934,200.0,0.0002251,2]
[368501527,1751191832027,-200.0,0.000231,7]
[368501528,1751191832037,-200.0,0.0002351,2]
[368501529,1751191832047,-200.0,0.000241,7]
[368501530,1751191832056,-117.96305258,0.00025,2]
[368501532,1751191832068,-96.84147349,0.00025,2]
[368501533,1751191832078,-200.0,0.000251,7]
[368501534,1751191832088,-204.00510684,0.00026797,2]
[368501535,1751191832099,-95.99489316,0.00026797,2]
[368501536,1751191832109,-1200.0,0.00026797,2]
[368501537,1751191832119,-5934.95168315,0.00026798,2]
[368501538,1751191832130,-14493.22171454,0.00026798,2]
[368501539,1751191832140,-154.06,0.00026889,2]
[368501540,1751191832150,-1000.0,0.00027074,2]
[368501541,1751191832159,-220.09,0.00027123,2]
[368501542,1751191832170,-179.59,0.00027158,2]
[368501543,1751191832179,-250.0,0.00027201,2]
[368501544,1751191832189,-1000.0,0.00027297,2]
[368501545,1751191832200,-5000.0,0.00027297,2]
[368501546,1751191832211,-250.0,0.00027297,2]
[368501547,1751191832221,-183.64727929,0.00027297,2]
[368501548,1751191832231,-8935.40263509,0.00027297,2]
[368501549,1751191832241,-500.0,0.00027373,2]
[368501550,1751191832251,-500.0,0.00027373,2]
[368501551,1751191832261,-500.0,0.00027373,2]
[368501552,1751191832271,-500.0,0.00027373,2]
[368501553,1751191832281,-500.0,0.00027373,2]
[368501554,1751191832291,-502.87957175,0.00027373,2]
[368501555,1751191832301,-500.0,0.00027373,2]
[368501556,1751191832311,-502.8192785,0.00027373,2]
[368501557,1751191832320,-500.89475045,0.00027373,2]
[368501558,1751191832329,-500.0,0.00027373,2]
[368501559,1751191832338,-500.0,0.00027373,2]
[368501560,1751191832347,-500.0,0.00027373,2]
[368501561,1751191832358,-500.0,0.00027373,2]
[368501562,1751191832368,-6050.319411,0.00027387,3]
[368501563,1751191832377,-1651.72,0.00027387,2]
[368501564,1751191832386,-500.0,0.00027396,2]
[368501565,1751191832396,-593.47738946,0.00027396,2]
[368501566,1751191832406,-166.46,0.00027397,2]
[368501567,1751191832415,-490.0,0.00027397,3]
[368501568,1751191832424,-490.0,0.00027397,3]
[368501569,1751191832434,-490.0,0.00027397,3]
[368501570,1751191832444,-490.0,0.00027397,3]
[368501571,1751191832453,-542.33,0.00027397,3]
[368501572,1751191832462,-490.0,0.00027397,3]
[368501573,1751191832472,-490.0,0.00027397,3]
[368501574,1751191832480,-490.0,0.00027397,3]
[368501575,1751191832489,-491.21532723,0.00027397,3]
[368501576,1751191832498,-491.18048835,0.00027397,3]
[368501577,1751191832508,-490.0,0.00027397,3]
[368501578,1751191832517,-490.0,0.00027397,3]
[368501579,1751191832526,-492.55605072,0.00027397,3]
[368501580,1751191832536,-490.0,0.00027397,3]
[368501581,1751191832545,-490.0,0.00027397,3]
[368501582,1751191832555,-490.0,0.00027397,3]
[368501583,1751191832564,-490.0,0.00027397,3]
[368501584,1751191832574,-490.0,0.00027397,3]
[368501585,1751191832584,-589.66087392,0.00027397,3]
[368501586,1751191832593,-490.0,0.00027397,3]
[368501587,1751191832604,-490.0,0.00027397,3]
[368501588,1751191832613,-490.0,0.00027397,3]
[368501589,1751191832623,-490.0,0.00027397,3]
[368501590,1751191832633,-490.0,0.00027397,3]
[368501591,1751191832643,-490.0,0.00027397,3]
[368501592,1751191832653,-490.0,0.00027397,3]
[368501593,1751191832663,-490.0,0.00027397,3]
[368501594,1751191832673,-490.0,0.00027397,3]
[368501595,1751191832683,-490.0,0.00027397,3]
[368501596,1751191832693,-490.0,0.00027397,3]
[368501597,1751191832703,-490.0,0.00027397,3]
[368501598,1751191832712,-490.0,0.00027397,3]
[368501599,1751191832722,-490.0,0.00027397,3]